Workbook

Sheet Berechnung
A1: Honorarermittlungstabelle
A3: Objekt:
A6: Gewerk | B6: Rechnungssumme (Gesamt)
A7: (bitte nur die Nettobeträge eintragen) | B7: netto | C7: brutto
C8: =IF(B8="","",B8*1.19) -> 
C9: =IF(B9="","",B9*1.19) -> 
A19: Bausumme
A20: Bausumme netto | C20: =IF(SUM(B8:B17)<250,250,SUM(B8:B17)) -> 250
A21: Bausumme brutto | C21: =IF(SUM(C8:C17)<250,297.5,SUM(C8:C17)) -> 297.5 | D21: =IF(C22=1,2,IF(C22=2,4,IF(C22=3,4,IF(C22=4,6,IF(C22=5,6,8))))) -> 8
A22: Anzahl Gewerke | C22: =COUNTIF(C8:C17,">0,01") -> 0
A24: Grenzwerte
B25: Bausumme | C25: Honorar
A26: Grenzwert unten | B26: =VLOOKUP(C20,'Grundtabelle-neu'!A6:A55,1,1) -> 250 | C26: =VLOOKUP(B26,'Grundtabelle-neu'!A6:H55,D21,0) -> 107
A27: Grenzwert oben | B27: =INDEX('Grundtabelle-neu'!A:A,MATCH(B26,'Grundtabelle-neu'!A:A,0)+1,1) -> 500 | C27: =VLOOKUP(B27,'Grundtabelle-neu'!A6:H55,D21,0) -> 149
A29: Honorarberechnung
A30: Honorar netto | C30: =(C27-C26)/(B27-B26)*(C20-B26)+C26 -> 107
A31: Nebenkosten | B31: 5 | C31: =C30*B31/100 -> 5.35
A32: Kilometerabrechnung | C32: =B32*0.35 -> 0
A33: Fahrzeitpauschale | C33: =IF(Nebenberechnung!C1=2,200,IF(Nebenberechnung!C1=3,300,"enthalten")) -> enthalten
A36: Honorar gesamt netto | C36: =SUM(C30:C34) -> 112.35
A37: + 19% MwSt | C37: =C36*0.19 -> 21.3465
A38: Honorar brutto | C38: =SUM(C36:C37) -> 133.6965

Sheet Grundtabelle-neu
A1: Berechnungstabelle
A2: Bausumme in €
A4: netto | B4: 1 Gewerk | D4: 2 - 3 Gewerke | F4: 4 - 5 Gewerke | H4: > 5 Gewerke
B5: 0.8 | D5: 0.85 | F5: 0.9 | H5: 1
A6: 250 | B6: 107 | C6: =B6/A6*100 -> 42.8 | D6: 107 | F6: 107 | H6: 107
A7: 500 | B7: 149 | C7: =B7/A7*100 -> 29.8 | D7: 149 | F7: 149 | H7: 149
A8: 750 | B8: 190 | C8: 25.33333333 | D8: 190 | F8: 190 | H8: 190
A9: 1000 | B9: 231 | C9: 23.1 | D9: 231 | F9: 231 | H9: 231
A10: 1250 | B10: 271 | C10: 21.68 | D10: 271 | F10: 271 | H10: 271
A11: 1500 | B11: 310 | C11: 20.66666667 | D11: 310 | F11: 310 | H11: 310
A12: 1750 | B12: 352 | C12: 20.11428571 | D12: 352 | F12: 352 | H12: 352
A13: 2000 | B13: =ROUND((D13*0.95),0) -> 419 | C13: 20.95 | D13: 441 | E13: =D13/A13*100 -> 22.05 | F13: 441 | H13: 441 | K13: =B13/D13 -> 0.9501133787
A14: 2250 | B14: =ROUND((D14*0.95),0) -> 465 | C14: 20.66666667 | D14: 489 | E14: 21.73333333 | F14: 489 | H14: 489 | K14: 0.9509202454
A15: 2500 | B15: 509 | C15: 20.36 | D15: 536 | E15: 21.44 | F15: 536 | H15: 536 | K15: 0.9496268657
A16: 2750 | B16: 552 | C16: 20.07272727 | D16: 581 | E16: 21.12727273 | F16: 581 | H16: 581 | K16: 0.9500860585
A17: 3000 | B17: 594 | C17: 19.8 | D17: 625 | E17: 20.83333333 | F17: 625 | H17: 625 | K17: 0.9504
A18: 3250 | B18: 634 | C18: 19.50769231 | D18: 667 | E18: 20.52307692 | F18: 667 | H18: 667 | K18: 0.9505247376
A19: 3500 | B19: 672 | C19: 19.2 | D19: 707 | E19: 20.2 | F19: 707 | H19: 707 | K19: 0.9504950495
A20: 3750 | B20: 710 | C20: 18.93333333 | D20: 747 | E20: 19.92 | F20: 747 | H20: 747 | K20: 0.9504685408
A21: 4000 | B21: 745 | C21: 18.625 | D21: 784 | E21: 19.6 | F21: 784 | H21: 784 | K21: 0.950255102
A22: 4250 | B22: 779 | C22: 18.32941176 | D22: 820 | E22: 19.29411765 | F22: 820 | H22: 820 | K22: 0.95
A23: 4500 | B23: 811 | C23: 18.02222222 | D23: 854 | E23: 18.97777778 | F23: 854 | H23: 854 | K23: 0.9496487119
A24: 4750 | B24: 844 | C24: 17.76842105 | D24: 888 | E24: 18.69473684 | F24: 888 | H24: 888 | K24: 0.9504504505
A25: 5000 | B25: =ROUND((F25*0.9),0) -> 876 | C25: 17.52 | D25: =ROUND((F25*0.95),0) -> 924 | E25: 18.48 | F25: 973 | G25: =F25/A25*100 -> 19.46 | H25: 973 | K25: 0.9480519481
A26: 5500 | B26: =ROUND((F26*0.9),0) -> 946 | C26: 17.2 | D26: =ROUND((F26*0.95),0) -> 998 | E26: 18.14545455 | F26: 1051 | G26: 19.10909091 | H26: 1051 | K26: =B26/F26 -> 0.9000951475 | L26: =D26/F26 -> 0.9495718363
A27: 6000 | B27: 1013 | C27: 16.88333333 | D27: 1069 | E27: 17.81666667 | F27: 1125 | G27: 18.75 | H27: 1125 | K27: 0.9004444444 | L27: 0.9502222222
A28: 6500 | B28: 1076 | C28: 16.55384615 | D28: 1136 | E28: 17.47692308 | F28: 1196 | G28: 18.4 | H28: 1196 | K28: 0.8996655518 | L28: 0.9498327759
A29: 7000 | B29: 1138 | C29: 16.25714286 | D29: 1201 | E29: 17.15714286 | F29: 1264 | G29: 18.05714286 | H29: 1264 | K29: 0.9003164557 | L29: 0.9501582278
A30: 7500 | B30: 1195 | C30: 15.93333333 | D30: 1262 | E30: 16.82666667 | F30: 1328 | G30: 17.70666667 | H30: 1328 | K30: 0.8998493976 | L30: 0.9503012048
A31: 8000 | B31: 1249 | C31: 15.6125 | D31: 1319 | E31: 16.4875 | F31: 1388 | G31: 17.35 | H31: 1388 | K31: 0.8998559078 | L31: 0.9502881844
A32: 8500 | B32: 1301 | C32: 15.30588235 | D32: 1373 | E32: 16.15294118 | F32: 1445 | G32: 17 | H32: 1445 | K32: 0.9003460208 | L32: 0.9501730104
A33: 9000 | B33: 1348 | C33: 14.97777778 | D33: 1423 | E33: 15.81111111 | F33: 1498 | G33: 16.64444444 | H33: 1498 | K33: 0.8998664887 | L33: 0.9499332443
A34: 9500 | B34: 1392 | C34: 14.65263158 | D34: 1470 | E34: 15.47368421 | F34: 1547 | G34: 16.28421053 | H34: 1547 | K34: 0.8998060763 | L34: 0.9502262443
A35: 10000 | B35: =ROUND((H35*0.8),0) -> 1365 | C35: 13.65 | D35: =ROUND((H35*0.85),0) -> 1450 | E35: 14.5 | F35: =ROUND((H35*0.9),0) -> 1535 | G35: 15.35 | H35: 1706 | I35: =H35/A35*100 -> 17.06 | K35: =B35/H35 -> 0.8001172333 | L35: =D35/H35 -> 0.8499413834 | M35: =F35/H35 -> 0.8997655334
A36: 11000 | B36: 1496 | C36: 13.6 | D36: 1590 | E36: 14.45454545 | F36: 1683 | G36: 15.3 | H36: 1870 | I36: 17 | K36: 0.8 | L36: 0.8502673797 | M36: 0.9
A37: 12000 | B37: 1627 | C37: 13.55833333 | D37: 1729 | E37: 14.40833333 | F37: 1831 | G37: 15.25833333 | H37: 2034 | I37: 16.95 | K37: 0.7999016716 | L37: 0.8500491642 | M37: 0.9001966568
A38: 13000 | B38: 1758 | C38: 13.52307692 | D38: 1868 | E38: 14.36923077 | F38: 1978 | G38: 15.21538462 | H38: 2198 | I38: 16.90769231 | K38: 0.7998180164 | L38: 0.8498635123 | M38: 0.8999090082
A39: 14000 | B39: 1890 | C39: 13.5 | D39: 2008 | E39: 14.34285714 | F39: 2126 | G39: 15.18571429 | H39: 2362 | I39: 16.87142857 | K39: 0.800169348 | L39: 0.850127011 | M39: 0.900084674
A40: 15000 | B40: 2021 | C40: 13.47333333 | D40: 2147 | E40: 14.31333333 | F40: 2273 | G40: 15.15333333 | H40: 2526 | I40: 16.84 | K40: 0.8000791766 | L40: 0.8499604117 | M40: 0.8998416469
A41: 16000 | B41: 2152 | C41: 13.45 | D41: 2287 | E41: 14.29375 | F41: 2421 | G41: 15.13125 | H41: 2690 | I41: 16.8125 | K41: 0.8 | L41: 0.8501858736 | M41: 0.9
A42: 17000 | B42: 2283 | C42: =B42/A42*100 -> 13.42941176 | D42: 2426 | E42: =D42/A42*100 -> 14.27058824 | F42: 2569 | G42: =F42/A42*100 -> 15.11176471 | H42: 2854 | I42: =H42/A42*100 -> 16.78823529 | K42: 0.7999299229 | L42: 0.8500350385 | M42: 0.9001401542
A43: 18000 | B43: 2414 | C43: 13.41111111 | D43: 2565 | E43: 14.25 | F43: 2716 | G43: 15.08888889 | H43: 3018 | I43: 16.76666667 | K43: =B43/H43 -> 0.7998674619 | L43: =D43/H43 -> 0.8499005964 | M43: =F43/H43 -> 0.8999337309
A44: 19000 | B44: 2546 | C44: 13.4 | D44: 2705 | E44: 14.23684211 | F44: 2864 | G44: 15.07368421 | H44: 3182 | I44: 16.74736842 | K44: 0.8001257071 | L44: 0.8500942803 | M44: 0.9000628536
A45: 20000 | B45: 2677 | C45: 13.385 | D45: 2844 | E45: 14.22 | F45: 3011 | G45: 15.055 | H45: 3346 | I45: 16.73 | K45: 0.8000597729 | L45: 0.8499701136 | M45: 0.8998804543
A46: 21000 | B46: 2808 | C46: 13.37142857 | D46: 2984 | E46: 14.20952381 | F46: 3159 | G46: 15.04285714 | H46: 3510 | I46: 16.71428571 | K46: 0.8 | L46: 0.8501424501 | M46: 0.9
A47: 22000 | B47: 2939 | C47: 13.35909091 | D47: 3123 | E47: 14.19545455 | F47: 3307 | G47: 15.03181818 | H47: 3674 | I47: 16.7 | K47: 0.7999455634 | L47: 0.8500272183 | M47: 0.9001088732
A48: 23000 | B48: 3070 | C48: 13.34782609 | D48: 3262 | E48: 14.1826087 | F48: 3454 | G48: 15.0173913 | H48: 3838 | I48: 16.68695652 | K48: 0.7998957791 | L48: 0.8499218343 | M48: 0.8999478895
A49: 24000 | B49: 3202 | C49: 13.34166667 | D49: 3402 | E49: 14.175 | F49: 3602 | G49: 15.00833333 | H49: 4002 | I49: 16.675 | K49: 0.80009995 | L49: 0.8500749625 | M49: 0.900049975
A50: 25000 | B50: =ROUND((H50*0.8),0) -> 3332 | C50: 13.328 | D50: =ROUND((H50*0.85),0) -> 3540 | E50: 14.16 | F50: =ROUND((H50*0.9),0) -> 3749 | G50: 14.996 | H50: 4165 | I50: 16.66 | K50: 0.8 | L50: 0.849939976 | M50: 0.900120048
A51: 30000 | B51: 3918 | C51: 13.06 | D51: 4163 | E51: 13.87666667 | F51: 4408 | G51: 14.69333333 | H51: 4898 | I51: 16.32666667
A52: 35000 | B52: 4504 | C52: 12.86857143 | D52: 4786 | E52: 13.67428571 | F52: 5067 | G52: 14.47714286 | H52: 5630 | I52: 16.08571429
A53: 40000 | B53: 5069 | C53: 12.6725 | D53: 5386 | E53: 13.465 | F53: 5702 | G53: 14.255 | H53: 6336 | I53: 15.84
A54: 45000 | B54: 5634 | C54: 12.52 | D54: 5987 | E54: 13.30444444 | F54: 6339 | G54: 14.08666667 | H54: 7043 | I54: 15.65111111
A55: 50000 | B55: 6198 | C55: 12.396 | D55: 6586 | E55: 13.172 | F55: 6973 | G55: 13.946 | H55: 7748 | I55: 15.496
A56: Grenzwert erreicht

Sheet Tabelle3 (hidden)
A1: netto | B1: 1Gew | C1: 2-3 Gew | D1: 4-5 Gew | E1: >5 Gew
A2: 250 | B2: 41.9936
A3: 500 | B3: 29.2468
A4: 750 | B4: 24.83506667
A5: 1000 | B5: 22.6303
A6: 1250 | B6: 21.24144
A7: 1500 | B7: 20.28766667
A8: 1750 | B8: 19.72394286
A9: 2000 | B9: 19.448 | C9: 21.60888889
A10: 2250 | B10: 19.184 | C10: 21.31555556
A11: 2500 | B11: 18.909 | C11: 21.01
A12: 2750 | B12: 18.645 | C12: 20.71666667
A13: 3000 | B13: 18.37 | C13: 20.41111111
A14: 3250 | B14: 18.106 | C14: 20.11777778
A15: 3500 | B15: 17.831 | C15: 19.81222222
A16: 3750 | B16: 17.567 | C16: 19.51888889
A17: 4000 | B17: 17.292 | C17: 19.21333333
A18: 4250 | B18: 17.028 | C18: 18.92
A19: 4500 | B19: 16.753 | C19: 18.61444444
A20: 4750 | B20: 16.489 | C20: 18.32111111
A21: 5000 | B21: 16.214 | C21: 18.01555556 | D21: 19.07529412
A22: 5250 | B22: 16.071 | C22: 17.40681905 | D22: 18.90705882
A23: 5500 | B23: 15.917 | C23: 16.85329412 | D23: 18.72588235
A24: 5750 | B24: 15.774 | C24: 16.70188235 | D24: 18.55764706
A25: 6000 | B25: 15.631 | C25: 16.55047059 | D25: 18.38941176
A26: 6250 | B26: 15.488 | C26: 16.39905882 | D26: 18.22117647
A27: 6500 | B27: 15.334 | C27: 16.236 | D27: 18.04
A28: 6750 | B28: 15.191 | C28: 16.08458824 | D28: 17.87176471
A29: 7000 | B29: 15.048 | C29: 15.93317647 | D29: 17.70352941
A30: 7250 | B30: 14.894 | C30: 15.77011765 | D30: 17.52235294
A31: 7500 | B31: 14.751 | C31: 15.61870588 | D31: 17.35411765
A32: 7750 | B32: 14.608 | C32: 15.46729412 | D32: 17.18588235
A33: 8000 | B33: 14.454 | C33: 15.30423529 | D33: 17.00470588
A34: 8250 | B34: 14.311 | C34: 15.15282353 | D34: 16.83647059
A35: 8500 | B35: 14.168 | C35: 15.00141176 | D35: 16.66823529
A36: 8750 | B36: 14.025 | C36: 14.85 | D36: 16.5
A37: 9000 | B37: 13.871 | C37: 14.68694118 | D37: 16.31882353
A38: 9250 | B38: 13.728 | C38: 14.53552941 | D38: 16.15058824
A39: 9500 | B39: 13.574 | C39: 14.37247059 | D39: 15.96941176
A40: 9750 | B40: 13.431 | C40: 14.07840923 | D40: 15.64267692
A41: 10000 | B41: 13.37864 | C41: 14.214805 | D41: 15.33224 | E41: 16.7233
A42: 10250 | B42: 13.36621268 | C42: 14.20160098 | D42: 15.03698927 | E42: 16.70776585
A43: 10500 | B43: 13.35429333 | C43: 14.18893667 | D43: 15.02358 | E43: 16.69286667
A44: 10750 | B44: 13.34301023 | C44: 14.17694837 | D44: 15.01088651 | E44: 16.67876279
A45: 11000 | B45: 13.33224 | C45: 14.165505 | D45: 14.99877 | E45: 16.6653
A46: 11250 | B46: 13.32194844 | C46: 14.15457022 | D46: 14.987192 | E46: 16.65243556
A47: 11500 | B47: 13.31210435 | C47: 14.14411087 | D47: 14.97611739 | E47: 16.64013043
A48: 11750 | B48: 13.30267915 | C48: 14.1340966 | D48: 14.96551404 | E48: 16.62834894
A49: 12000 | B49: 13.29364667 | C49: 14.12449958 | D49: 14.9553525 | E49: 16.61705833
A50: 12250 | B50: 13.28498286 | C50: 14.11529429 | D50: 14.94560571 | E50: 16.60622857
A51: 12500 | B51: 13.2766656 | C51: 14.1064572 | D51: 14.9362488 | E51: 16.595832
A52: 12750 | B52: 13.26867451 | C52: 14.09796667 | D52: 14.92725882 | E52: 16.58584314
A53: 13000 | B53: 13.26099077 | C53: 14.08980269 | D53: 14.91861462 | E53: 16.57623846
A54: 13250 | B54: 13.25359698 | C54: 14.08194679 | D54: 14.9102966 | E54: 16.56699623
A55: 13500 | B55: 13.24641185 | C55: 14.07431259 | D55: 14.90221333 | E55: 16.55801481
A56: 13750 | B56: 13.239552 | C56: 14.067024 | D56: 14.894496 | E56: 16.54944
A57: 14000 | B57: 13.23293714 | C57: 14.05999571 | D57: 14.88705429 | E57: 16.54117143
A58: 14250 | B58: 13.22655439 | C58: 14.05321404 | D58: 14.87987368 | E58: 16.53319298
A59: 14500 | B59: 13.22039172 | C59: 14.04666621 | D59: 14.87294069 | E59: 16.52548966
A60: 14750 | B60: 13.21443797 | C60: 14.04034034 | D60: 14.86624271 | E60: 16.51804746
A61: 15000 | B61: 13.20868267 | C61: 14.03422533 | D61: 14.859768 | E61: 16.51085333
A62: 15250 | B62: 13.20300066 | C62: 14.0281882 | D62: 14.85337574 | E62: 16.50375082
A63: 15500 | B63: 13.19750194 | C63: 14.02234581 | D63: 14.84718968 | E63: 16.49687742
A64: 15750 | B64: 13.19217778 | C64: 14.01668889 | D64: 14.8412 | E64: 16.49022222
A65: 16000 | B65: 13.18702 | C65: 14.01120875 | D65: 14.8353975 | E65: 16.483775
A66: 16250 | B66: 13.18202092 | C66: 14.00589723 | D66: 14.82977354 | E66: 16.47752615
A67: 16500 | B67: 13.17717333 | C67: 14.00074667 | D67: 14.82432 | E67: 16.47146667
A68: 16750 | B68: 13.17247045 | C68: 13.99574985 | D68: 14.81902925 | E68: 16.46558806
A69: 17000 | B69: 13.16790588 | C69: 13.9909 | D69: 14.81389412 | E69: 16.45988235
A70: 17250 | B70: 13.16352464 | C70: 13.98624493 | D70: 14.80896522 | E70: 16.4544058
A71: 17500 | B71: 13.15921829 | C71: 13.98166943 | D71: 14.80412057 | E71: 16.44902286
A72: 17750 | B72: 13.15503324 | C72: 13.97722282 | D72: 14.79941239 | E72: 16.44379155
A73: 18000 | B73: 13.15096444 | C73: 13.97289972 | D73: 14.794835 | E73: 16.43870556
A74: 18250 | B74: 13.14700712 | C74: 13.96869507 | D74: 14.79038301 | E74: 16.4337589
A75: 18500 | B75: 13.14315676 | C75: 13.96460405 | D75: 14.78605135 | E75: 16.42894595
A76: 18750 | B76: 13.13940907 | C76: 13.96062213 | D76: 14.7818352 | E76: 16.42426133
A77: 19000 | B77: 13.13576 | C77: 13.956745 | D77: 14.77773 | E77: 16.4197
A78: 19250 | B78: 13.13220571 | C78: 13.95296857 | D78: 14.77373143 | E78: 16.41525714
A79: 19500 | B79: 13.12874256 | C79: 13.94928897 | D79: 14.76983538 | E79: 16.41092821
A80: 19750 | B80: 13.12536709 | C80: 13.94570253 | D80: 14.76603797 | E80: 16.40670886
A81: 20000 | B81: 13.122076 | C81: 13.94220575 | D81: 14.7623355 | E81: 16.402595
A82: 20250 | B82: 13.11895309 | C82: 13.93888765 | D82: 14.75882222 | E82: 16.39869136
A83: 20500 | B83: 13.11590634 | C83: 13.93565049 | D83: 14.75539463 | E83: 16.39488293
A84: 20750 | B84: 13.11293301 | C84: 13.93249133 | D84: 14.75204964 | E84: 16.39116627
A85: 21000 | B85: 13.11003048 | C85: 13.92940738 | D85: 14.74878429 | E85: 16.3875381
A86: 21250 | B86: 13.10719624 | C86: 13.926396 | D86: 14.74559576 | E86: 16.38399529
A87: 21500 | B87: 13.10442791 | C87: 13.92345465 | D87: 14.7424814 | E87: 16.38053488
A88: 21750 | B88: 13.10172322 | C88: 13.92058092 | D88: 14.73943862 | E88: 16.37715402
A89: 22000 | B89: 13.09908 | C89: 13.9177725 | D89: 14.736465 | E89: 16.37385
A90: 22250 | B90: 13.09645663 | C90: 13.91498517 | D90: 14.73351371 | E90: 16.37057079
A91: 22500 | B91: 13.09393067 | C91: 13.91230133 | D91: 14.730672 | E91: 16.36741333
A92: 22750 | B92: 13.09146022 | C92: 13.90967648 | D92: 14.72789275 | E92: 16.36432527
A93: 23000 | B93: 13.08904348 | C93: 13.9071087 | D93: 14.72517391 | E93: 16.36130435
A94: 23250 | B94: 13.08667871 | C94: 13.90459613 | D94: 14.72251355 | E94: 16.35834839
A95: 23500 | B95: 13.08436426 | C95: 13.90213702 | D95: 14.71990979 | E95: 16.35545532
A96: 23750 | B96: 13.08209853 | C96: 13.89972968 | D96: 14.71736084 | E96: 16.35262316
A97: 24000 | B97: 13.07988 | C97: 13.8973725 | D97: 14.714865 | E97: 16.34985
A98: 24250 | B98: 13.07770722 | C98: 13.89506392 | D98: 14.71242062 | E98: 16.34713402
A99: 24500 | B99: 13.07557878 | C99: 13.89280245 | D99: 14.71002612 | E99: 16.34447347
A100: 24750 | B100: 13.07349333 | C100: 13.89058667 | D100: 14.70768 | E100: 16.34186667
A101: 25000 | B101: 13.0714496 | C101: 13.8884152 | D101: 14.7053808 | E101: 16.339312
A102: 25250 | B102: 13.06564752 | C102: 13.8822505 | D102: 14.69885347 | E102: 16.33205941
A103: 25500 | B103: 13.0637898 | C103: 13.88027667 | D103: 14.69676353 | E103: 16.32973725
A104: 25750 | B104: 13.05817476 | C104: 13.87431068 | D104: 14.6904466 | E104: 16.32271845
A105: 26000 | B105: 13.05266769 | C105: 13.86845942 | D105: 14.68425115 | E105: 16.31583462
A106: 26250 | B106: 13.05098667 | C106: 13.86667333 | D106: 14.68236 | E106: 16.31373333
A107: 26500 | B107: 13.04565132 | C107: 13.86100453 | D107: 14.67635774 | E107: 16.30706415
A108: 26750 | B108: 13.04406729 | C108: 13.8593215 | D108: 14.6745757 | E108: 16.30508411
A109: 27000 | B109: 13.03892741 | C109: 13.85386037 | D109: 14.66879333 | E109: 16.29865926
A110: 27250 | B110: 13.03743413 | C110: 13.85227376 | D110: 14.66711339 | E110: 16.29679266
A111: 27500 | B111: 13.032416 | C111: 13.846942 | D111: 14.661468 | E111: 16.29052
A112: 27750 | B112: 13.02748829 | C112: 13.84170631 | D112: 14.65592432 | E112: 16.28436036
A113: 28000 | B113: 13.02264857 | C113: 13.83656411 | D113: 14.65047964 | E113: 16.27831071
A114: 28250 | B114: 13.01792566 | C114: 13.83154602 | D114: 14.64516637 | E114: 16.27240708
A115: 28500 | B115: 13.01668211 | C115: 13.83022474 | D115: 14.64376737 | E115: 16.27085263
A116: 28750 | B116: 13.01546017 | C116: 13.82892643 | D116: 14.6423927 | E116: 16.26932522
A117: 29000 | B117: 13.01089103 | C117: 13.82407172 | D117: 14.63725241 | E117: 16.26361379
A118: 29250 | B118: 13.00973949 | C118: 13.82284821 | D118: 14.63595692 | E118: 16.26217436
A119: 29500 | B119: 13.00529627 | C119: 13.81812729 | D119: 14.63095831 | E119: 16.25662034
A120: 29750 | B120: 13.00421109 | C120: 13.81697429 | D120: 14.62973748 | E120: 16.25526387
A121: 30000 | B121: 12.999888 | C121: 13.812381 | D121: 14.624874 | E121: 16.24986

Sheet Nebenberechnung (hidden)
A1: Fahrzeitpauschale 1 bis 1 Std | C1: 1
A2: Fahrzeitpauschale 2 bis 2 Std
A3: Fahrzeitpauschale 3 bis 3 Std

Sheet Grundtabelle-alt (hidden)
A1: Gesamttabelle in 250€ - Schritten
A2: Bausumme in €
A4: netto | B4: 1 Gewerk | D4: 2 - 3 Gewerke | F4: 4 - 5 Gewerke | H4: > 5 Gewerke
B5: 0.8 | D5: 0.85 | F5: 0.9 | H5: 1
A6: 250 | B6: 95.44 | C6: =B6/A6*100 -> 38.176 | D6: 95.44 | F6: 95.44 | H6: 95.44
A7: 500 | B7: 132.94 | C7: 26.588 | D7: 132.94 | F7: 132.94 | H7: 132.94
A8: 750 | B8: 169.33 | C8: 22.57733333 | D8: 169.33 | F8: 169.33 | H8: 169.33
A9: 1000 | B9: 205.73 | C9: 20.573 | D9: 205.73 | F9: 205.73 | H9: 205.73
A10: 1250 | B10: 241.38 | C10: 19.3104 | D10: 241.38 | F10: 241.38 | H10: 241.38
A11: 1500 | B11: 276.65 | C11: 18.44333333 | D11: 276.65 | F11: 276.65 | H11: 276.65
A12: 1750 | B12: 313.79 | C12: 17.93085714 | D12: 313.79 | F12: 313.79 | H12: 313.79
A13: 2000 | B13: 353.6 | C13: 17.68 | D13: 392.8888889 | E13: =D13/A13*100 -> 19.64444444 | F13: 392.8888889 | H13: 392.8888889 | K13: =B13/D13 -> 0.9
A14: 2250 | B14: 392.4 | C14: 17.44 | D14: 436 | E14: 19.37777778 | F14: 436 | H14: 436 | K14: =B14/D14 -> 0.9
A15: 2500 | B15: 429.75 | C15: 17.19 | D15: 477.5 | E15: 19.1 | F15: 477.5 | H15: 477.5 | K15: 0.9
A16: 2750 | B16: 466.125 | C16: 16.95 | D16: 517.9166667 | E16: 18.83333333 | F16: 517.9166667 | H16: 517.9166667 | K16: 0.9
A17: 3000 | B17: 501 | C17: 16.7 | D17: 556.6666667 | E17: 18.55555556 | F17: 556.6666667 | H17: 556.6666667 | K17: 0.9
A18: 3250 | B18: 534.95 | C18: 16.46 | D18: 594.3888889 | E18: 18.28888889 | F18: 594.3888889 | H18: 594.3888889 | K18: 0.9
A19: 3500 | B19: 567.35 | C19: 16.21 | D19: 630.3888889 | E19: 18.01111111 | F19: 630.3888889 | H19: 630.3888889 | K19: 0.9
A20: 3750 | B20: 598.875 | C20: 15.97 | D20: 665.4166667 | E20: 17.74444444 | F20: 665.4166667 | H20: 665.4166667 | K20: 0.9
A21: 4000 | B21: 628.8 | C21: 15.72 | D21: 698.6666667 | E21: 17.46666667 | F21: 698.6666667 | H21: 698.6666667 | K21: 0.9
A22: 4250 | B22: 657.9 | C22: 15.48 | D22: 731 | E22: 17.2 | F22: 731 | H22: 731 | K22: 0.9
A23: 4500 | B23: 685.35 | C23: 15.23 | D23: 761.5 | E23: 16.92222222 | F23: 761.5 | H23: 761.5 | K23: 0.9
A24: 4750 | B24: 712.025 | C24: 14.99 | D24: 791.1388889 | E24: 16.65555556 | F24: 791.1388889 | H24: 791.1388889 | K24: 0.9
A25: 5000 | B25: 737 | C25: 14.74 | D25: 818.8888889 | E25: 16.37777778 | F25: =B25/0.85 -> 867.0588235 | G25: =F25/A25*100 -> 17.34117647 | H25: =D25/0.85 -> 963.3986928 | K25: 0.9
A26: 5250 | B26: 767.025 | C26: 14.61 | D26: 830.78 | E26: 15.82438095 | F26: =B26/0.85 -> 902.3823529 | G26: 17.18823529 | H26: =D26/0.85 -> 977.3882353 | K26: =B26/F26 -> 0.85 | L26: =D26/F26 -> 0.9206518692
A27: 5500 | B27: 795.85 | C27: 14.47 | D27: 842.6647059 | E27: 15.32117647 | F27: =B27/0.85 -> 936.2941176 | G27: 17.02352941 | H27: 991.3702422 | K27: =B27/F27 -> 0.85 | L27: =D27/F27 -> 0.9
A28: 5750 | B28: 824.55 | C28: 14.34 | D28: 873.0529412 | E28: 15.18352941 | F28: 970.0588235 | G28: 16.87058824 | H28: 1027.121107 | K28: 0.85 | L28: 0.9
A29: 6000 | B29: 852.6 | C29: 14.21 | D29: 902.7529412 | E29: 15.04588235 | F29: 1003.058824 | G29: 16.71764706 | H29: 1062.062284 | K29: 0.85 | L29: 0.9
A30: 6250 | B30: 880 | C30: 14.08 | D30: 931.7647059 | E30: 14.90823529 | F30: 1035.294118 | G30: 16.56470588 | H30: 1096.193772 | K30: 0.85 | L30: 0.9
A31: 6500 | B31: 906.1 | C31: 13.94 | D31: 959.4 | E31: 14.76 | F31: 1066 | G31: 16.4 | H31: 1128.705882 | K31: 0.85 | L31: 0.9
A32: 6750 | B32: 932.175 | C32: 13.81 | D32: 987.0088235 | E32: 14.62235294 | F32: 1096.676471 | G32: 16.24705882 | H32: 1161.186851 | K32: 0.85 | L32: 0.9
A33: 7000 | B33: 957.6 | C33: 13.68 | D33: 1013.929412 | E33: 14.48470588 | F33: 1126.588235 | G33: 16.09411765 | H33: 1192.858131 | K33: 0.85 | L33: 0.9
A34: 7250 | B34: 981.65 | C34: 13.54 | D34: 1039.394118 | E34: 14.33647059 | F34: 1154.882353 | G34: 15.92941176 | H34: 1222.816609 | K34: 0.85 | L34: 0.9
A35: 7500 | B35: 1005.75 | C35: 13.41 | D35: 1064.911765 | E35: 14.19882353 | F35: 1183.235294 | G35: 15.77647059 | H35: 1252.83737 | K35: 0.85 | L35: 0.9
A36: 7750 | B36: 1029.2 | C36: 13.28 | D36: 1089.741176 | E36: 14.06117647 | F36: 1210.823529 | G36: 15.62352941 | H36: 1282.048443 | K36: 0.85 | L36: 0.9
A37: 8000 | B37: 1051.2 | C37: 13.14 | D37: 1113.035294 | E37: 13.91294118 | F37: 1236.705882 | G37: 15.45882353 | H37: 1309.453287 | K37: 0.85 | L37: 0.9
A38: 8250 | B38: 1073.325 | C38: 13.01 | D38: 1136.461765 | E38: 13.77529412 | F38: 1262.735294 | G38: 15.30588235 | H38: 1337.013841 | K38: 0.85 | L38: 0.9
A39: 8500 | B39: 1094.8 | C39: 12.88 | D39: 1159.2 | E39: 13.63764706 | F39: 1288 | G39: 15.15294118 | H39: 1363.764706 | K39: 0.85 | L39: 0.9
A40: 8750 | B40: 1115.625 | C40: 12.75 | D40: 1181.25 | E40: 13.5 | F40: 1312.5 | G40: 15 | H40: 1389.705882 | K40: 0.85 | L40: 0.9
A41: 9000 | B41: 1134.9 | C41: 12.61 | D41: 1201.658824 | E41: 13.35176471 | F41: 1335.176471 | G41: 14.83529412 | H41: 1413.716263 | K41: 0.85 | L41: 0.9
A42: 9250 | B42: 1154.4 | C42: 12.48 | D42: 1222.305882 | E42: 13.21411765 | F42: 1358.117647 | G42: 14.68235294 | H42: 1438.00692 | K42: 0.85 | L42: 0.9
A43: 9500 | B43: 1172.3 | C43: 12.34 | D43: 1241.258824 | E43: 13.06588235 | F43: 1379.176471 | G43: 14.51764706 | H43: 1460.304498 | K43: 0.85 | L43: 0.9
A44: 9750 | B44: 1190.475 | C44: 12.21 | D44: 1247.859 | E44: 12.79855385 | F44: 1386.51 | G44: 14.22061538 | H44: 1386.51 | K44: 0.8586126317 | L44: 0.9
A45: 10000 | B45: 1216.24 | C45: 12.1624 | D45: 1292.255 | E45: 12.92255 | F45: 1393.84 | G45: 13.9384 | H45: 1520.3 | I45: =H45/A45*100 -> 15.203 | K45: =B45/H45 -> 0.8 | L45: =D45/H45 -> 0.85 | M45: =F45/H45 -> 0.9168190489
A46: 10250 | B46: 1245.488 | C46: 12.15110244 | D46: 1323.331 | E46: 12.91054634 | F46: =H46*0.9 -> 1401.174 | G46: 13.66999024 | H46: 1556.86 | I46: 15.18887805 | K46: 0.8 | L46: =D46/H46 -> 0.85 | M46: =F46/H46 -> 0.9
A47: 10500 | B47: 1274.728 | C47: 12.14026667 | D47: 1354.3985 | E47: 12.89903333 | F47: 1434.069 | G47: 13.6578 | H47: 1593.41 | I47: 15.17533333 | K47: 0.8 | L47: 0.85 | M47: 0.9
A48: 10750 | B48: 1303.976 | C48: 12.1300093 | D48: 1385.4745 | E48: 12.88813488 | F48: 1466.973 | G48: 13.64626047 | H48: 1629.97 | I48: 15.16251163 | K48: 0.8 | L48: 0.85 | M48: 0.9
A49: 11000 | B49: 1333.224 | C49: 12.12021818 | D49: 1416.5505 | E49: 12.87773182 | F49: 1499.877 | G49: 13.63524545 | H49: 1666.53 | I49: 15.15027273 | K49: 0.8 | L49: 0.85 | M49: 0.9
A50: 11250 | B50: 1362.472 | C50: 12.11086222 | D50: 1447.6265 | E50: 12.86779111 | F50: 1532.781 | G50: 13.62472 | H50: 1703.09 | I50: 15.13857778 | K50: 0.8 | L50: 0.85 | M50: 0.9
A51: 11500 | B51: 1391.72 | C51: 12.10191304 | D51: 1478.7025 | E51: 12.85828261 | F51: 1565.685 | G51: 13.61465217 | H51: 1739.65 | I51: 15.1273913 | K51: 0.8 | L51: 0.85 | M51: 0.9
A52: 11750 | B52: 1420.968 | C52: 12.09334468 | D52: 1509.7785 | E52: 12.84917872 | F52: 1598.589 | G52: 13.60501277 | H52: 1776.21 | I52: 15.11668085 | K52: 0.8 | L52: 0.85 | M52: 0.9
A53: 12000 | B53: 1450.216 | C53: 12.08513333 | D53: 1540.8545 | E53: 12.84045417 | F53: 1631.493 | G53: 13.595775 | H53: 1812.77 | I53: 15.10641667 | K53: 0.8 | L53: 0.85 | M53: 0.9
A54: 12250 | B54: 1479.464 | C54: 12.07725714 | D54: 1571.9305 | E54: 12.83208571 | F54: 1664.397 | G54: 13.58691429 | H54: 1849.33 | I54: 15.09657143 | K54: 0.8 | L54: 0.85 | M54: 0.9
A55: 12500 | B55: 1508.712 | C55: 12.069696 | D55: 1603.0065 | E55: 12.824052 | F55: 1697.301 | G55: 13.578408 | H55: 1885.89 | I55: 15.08712 | K55: 0.8 | L55: 0.85 | M55: 0.9
A56: 12750 | B56: 1537.96 | C56: 12.06243137 | D56: 1634.0825 | E56: 12.81633333 | F56: 1730.205 | G56: 13.57023529 | H56: 1922.45 | I56: 15.07803922 | K56: 0.8 | L56: 0.85 | M56: 0.9
A57: 13000 | B57: 1567.208 | C57: 12.05544615 | D57: 1665.1585 | E57: 12.80891154 | F57: 1763.109 | G57: 13.56237692 | H57: 1959.01 | I57: 15.06930769 | K57: 0.8 | L57: 0.85 | M57: 0.9
A58: 13250 | B58: 1596.456 | C58: 12.04872453 | D58: 1696.2345 | E58: 12.80176981 | F58: 1796.013 | G58: 13.55481509 | H58: 1995.57 | I58: 15.06090566 | K58: 0.8 | L58: 0.85 | M58: 0.9
A59: 13500 | B59: 1625.696 | C59: 12.04219259 | D59: 1727.302 | E59: 12.79482963 | F59: 1828.908 | G59: 13.54746667 | H59: 2032.12 | I59: 15.05274074 | K59: 0.8 | L59: 0.85 | M59: 0.9
A60: 13750 | B60: 1654.944 | C60: 12.03595636 | D60: 1758.378 | E60: 12.78820364 | F60: 1861.812 | G60: 13.54045091 | H60: 2068.68 | I60: 15.04494545 | K60: 0.8 | L60: 0.85 | M60: 0.9
A61: 14000 | B61: 1684.192 | C61: 12.02994286 | D61: 1789.454 | E61: 12.78181429 | F61: 1894.716 | G61: 13.53368571 | H61: 2105.24 | I61: 15.03742857 | K61: 0.8 | L61: 0.85 | M61: 0.9
A62: 14250 | B62: 1713.44 | C62: 12.02414035 | D62: 1820.53 | E62: 12.77564912 | F62: 1927.62 | G62: 13.52715789 | H62: 2141.8 | I62: 15.03017544 | K62: 0.8 | L62: 0.85 | M62: 0.9
A63: 14500 | B63: 1742.688 | C63: 12.01853793 | D63: 1851.606 | E63: 12.76969655 | F63: 1960.524 | G63: 13.52085517 | H63: 2178.36 | I63: 15.02317241 | K63: 0.8 | L63: 0.85 | M63: 0.9
A64: 14750 | B64: 1771.936 | C64: 12.01312542 | D64: 1882.682 | E64: 12.76394576 | F64: 1993.428 | G64: 13.5147661 | H64: 2214.92 | I64: 15.01640678 | K64: 0.8 | L64: 0.85 | M64: 0.9
A65: 15000 | B65: 1801.184 | C65: 12.00789333 | D65: 1913.758 | E65: 12.75838667 | F65: 2026.332 | G65: 13.50888 | H65: 2251.48 | I65: 15.00986667 | K65: 0.8 | L65: 0.85 | M65: 0.9
A66: 15250 | B66: 1830.416 | C66: 12.00272787 | D66: 1944.817 | E66: 12.75289836 | F66: 2059.218 | G66: 13.50306885 | H66: 2288.02 | I66: 15.00340984 | K66: 0.8 | L66: 0.85 | M66: 0.9
A67: 15500 | B67: 1859.648 | C67: 11.99772903 | D67: 1975.876 | E67: 12.7475871 | F67: 2092.104 | G67: 13.49744516 | H67: 2324.56 | I67: 14.99716129 | K67: 0.8 | L67: 0.85 | M67: 0.9
A68: 15750 | B68: 1888.88 | C68: 11.99288889 | D68: 2006.935 | E68: 12.74244444 | F68: 2124.99 | G68: 13.492 | H68: 2361.1 | I68: 14.99111111 | K68: 0.8 | L68: 0.85 | M68: 0.9
A69: 16000 | B69: 1918.112 | C69: 11.9882 | D69: 2037.994 | E69: 12.7374625 | F69: 2157.876 | G69: 13.486725 | H69: 2397.64 | I69: 14.98525 | K69: 0.8 | L69: 0.85 | M69: 0.9
A70: 16250 | B70: 1947.344 | C70: 11.98365538 | D70: 2069.053 | E70: 12.73263385 | F70: 2190.762 | G70: 13.48161231 | H70: 2434.18 | I70: 14.97956923 | K70: 0.8 | L70: 0.85 | M70: 0.9
A71: 16500 | B71: 1976.576 | C71: =B71/A71*100 -> 11.97924848 | D71: 2100.112 | E71: =D71/A71*100 -> 12.72795152 | F71: =H71*0.9 -> 2223.648 | G71: =F71/A71*100 -> 13.47665455 | H71: 2470.72 | I71: =H71/A71*100 -> 14.97406061 | K71: 0.8 | L71: 0.85 | M71: 0.9
A72: 16750 | B72: 2005.808 | C72: 11.97497313 | D72: 2131.171 | E72: 12.72340896 | F72: 2256.534 | G72: 13.47184478 | H72: 2507.26 | I72: 14.96871642 | K72: 0.8 | L72: 0.85 | M72: 0.9
A73: 17000 | B73: 2035.04 | C73: 11.97082353 | D73: 2162.23 | E73: 12.719 | F73: 2289.42 | G73: 13.46717647 | H73: 2543.8 | I73: 14.96352941 | K73: 0.8 | L73: 0.85 | M73: 0.9
A74: 17250 | B74: 2064.28 | C74: 11.96684058 | D74: 2193.2975 | E74: 12.71476812 | F74: 2322.315 | G74: 13.46269565 | H74: 2580.35 | I74: 14.95855072 | K74: 0.8 | L74: 0.85 | M74: 0.9
A75: 17500 | B75: 2093.512 | C75: 11.96292571 | D75: 2224.3565 | E75: 12.71060857 | F75: 2355.201 | G75: 13.45829143 | H75: 2616.89 | I75: 14.95365714 | K75: 0.8 | L75: 0.85 | M75: 0.9
A76: 17750 | B76: 2122.744 | C76: 11.95912113 | D76: 2255.4155 | E76: 12.7065662 | F76: 2388.087 | G76: 13.45401127 | H76: 2653.43 | I76: 14.94890141 | K76: 0.8 | L76: 0.85 | M76: 0.9
A77: 18000 | B77: 2151.976 | C77: 11.95542222 | D77: 2286.4745 | E77: 12.70263611 | F77: 2420.973 | G77: 13.44985 | H77: 2689.97 | I77: 14.94427778 | K77: =B77/H77 -> 0.8 | L77: 0.85 | M77: 0.9
A78: 18250 | B78: 2181.208 | C78: 11.95182466 | D78: 2317.5335 | E78: 12.6988137 | F78: 2453.859 | G78: 13.44580274 | H78: 2726.51 | I78: 14.93978082 | K78: 0.8 | L78: 0.85 | M78: 0.9
A79: 18500 | B79: 2210.44 | C79: 11.94832432 | D79: 2348.5925 | E79: 12.69509459 | F79: 2486.745 | G79: 13.44186486 | H79: 2763.05 | I79: 14.93540541 | K79: 0.8 | L79: 0.85 | M79: 0.9
A80: 18750 | B80: 2239.672 | C80: 11.94491733 | D80: 2379.6515 | E80: 12.69147467 | F80: 2519.631 | G80: 13.438032 | H80: 2799.59 | I80: 14.93114667 | K80: 0.8 | L80: 0.85 | M80: 0.9
A81: 19000 | B81: 2268.904 | C81: 11.9416 | D81: 2410.7105 | E81: 12.68795 | F81: 2552.517 | G81: 13.4343 | H81: 2836.13 | I81: 14.927 | K81: 0.8 | L81: 0.85 | M81: 0.9
A82: 19250 | B82: 2298.136 | C82: 11.93836883 | D82: 2441.7695 | E82: 12.68451688 | F82: 2585.403 | G82: 13.43066494 | H82: 2872.67 | I82: 14.92296104 | K82: 0.8 | L82: 0.85 | M82: 0.9
A83: 19500 | B83: 2327.368 | C83: 11.93522051 | D83: 2472.8285 | E83: 12.68117179 | F83: 2618.289 | G83: 13.42712308 | H83: 2909.21 | I83: 14.91902564 | K83: 0.8 | L83: 0.85 | M83: 0.9
A84: 19750 | B84: 2356.6 | C84: 11.9321519 | D84: 2503.8875 | E84: 12.67791139 | F84: 2651.175 | G84: 13.42367089 | H84: 2945.75 | I84: 14.91518987 | K84: 0.8 | L84: 0.85 | M84: 0.9
A85: 20000 | B85: 2385.832 | C85: 11.92916 | D85: 2534.9465 | E85: 12.6747325 | F85: 2684.061 | G85: 13.420305 | H85: 2982.29 | I85: 14.91145 | K85: 0.8 | L85: 0.85 | M85: 0.9
A86: 20250 | B86: 2415.08 | C86: 11.92632099 | D86: 2566.0225 | E86: 12.67171605 | F86: 2716.965 | G86: 13.41711111 | H86: 3018.85 | I86: 14.90790123 | K86: 0.8 | L86: 0.85 | M86: 0.9
A87: 20500 | B87: 2444.328 | C87: 11.92355122 | D87: 2597.0985 | E87: 12.66877317 | F87: 2749.869 | G87: 13.41399512 | H87: 3055.41 | I87: 14.90443902 | K87: 0.8 | L87: 0.85 | M87: 0.9
A88: 20750 | B88: 2473.576 | C88: 11.92084819 | D88: 2628.1745 | E88: 12.6659012 | F88: 2782.773 | G88: 13.41095422 | H88: 3091.97 | I88: 14.90106024 | K88: 0.8 | L88: 0.85 | M88: 0.9
A89: 21000 | B89: 2502.824 | C89: 11.91820952 | D89: 2659.2505 | E89: 12.66309762 | F89: 2815.677 | G89: 13.40798571 | H89: 3128.53 | I89: 14.8977619 | K89: 0.8 | L89: 0.85 | M89: 0.9
A90: 21250 | B90: 2532.072 | C90: 11.91563294 | D90: 2690.3265 | E90: 12.66036 | F90: 2848.581 | G90: 13.40508706 | H90: 3165.09 | I90: 14.89454118 | K90: 0.8 | L90: 0.85 | M90: 0.9
A91: 21500 | B91: 2561.32 | C91: 11.91311628 | D91: 2721.4025 | E91: 12.65768605 | F91: 2881.485 | G91: 13.40225581 | H91: 3201.65 | I91: 14.89139535 | K91: 0.8 | L91: 0.85 | M91: 0.9
A92: 21750 | B92: 2590.568 | C92: 11.91065747 | D92: 2752.4785 | E92: 12.65507356 | F92: 2914.389 | G92: 13.39948966 | H92: 3238.21 | I92: 14.88832184 | K92: 0.8 | L92: 0.85 | M92: 0.9
A93: 22000 | B93: 2619.816 | C93: 11.90825455 | D93: 2783.5545 | E93: 12.65252045 | F93: 2947.293 | G93: 13.39678636 | H93: 3274.77 | I93: 14.88531818 | K93: 0.8 | L93: 0.85 | M93: 0.9
A94: 22250 | B94: 2649.056 | C94: 11.90586966 | D94: 2814.622 | E94: 12.64998652 | F94: 2980.188 | G94: 13.39410337 | H94: 3311.32 | I94: 14.88233708 | K94: 0.8 | L94: 0.85 | M94: 0.9
A95: 22500 | B95: 2678.304 | C95: 11.90357333 | D95: 2845.698 | E95: 12.64754667 | F95: 3013.092 | G95: 13.39152 | H95: 3347.88 | I95: 14.87946667 | K95: 0.8 | L95: 0.85 | M95: 0.9
A96: 22750 | B96: 2707.552 | C96: 11.90132747 | D96: 2876.774 | E96: 12.64516044 | F96: 3045.996 | G96: 13.38899341 | H96: 3384.44 | I96: 14.87665934 | K96: 0.8 | L96: 0.85 | M96: 0.9
A97: 23000 | B97: 2736.8 | C97: 11.89913043 | D97: 2907.85 | E97: 12.64282609 | F97: 3078.9 | G97: 13.38652174 | H97: 3421 | I97: 14.87391304 | K97: 0.8 | L97: 0.85 | M97: 0.9
A98: 23250 | B98: 2766.048 | C98: 11.89698065 | D98: 2938.926 | E98: 12.64054194 | F98: 3111.804 | G98: 13.38410323 | H98: 3457.56 | I98: 14.87122581 | K98: 0.8 | L98: 0.85 | M98: 0.9
A99: 23500 | B99: 2795.296 | C99: 11.8948766 | D99: 2970.002 | E99: 12.63830638 | F99: 3144.708 | G99: 13.38173617 | H99: 3494.12 | I99: 14.86859574 | K99: 0.8 | L99: 0.85 | M99: 0.9
A100: 23750 | B100: 2824.544 | C100: 11.89281684 | D100: 3001.078 | E100: 12.63611789 | F100: 3177.612 | G100: 13.37941895 | H100: 3530.68 | I100: 14.86602105 | K100: 0.8 | L100: 0.85 | M100: 0.9
A101: 24000 | B101: 2853.792 | C101: 11.8908 | D101: 3032.154 | E101: 12.633975 | F101: 3210.516 | G101: 13.37715 | H101: 3567.24 | I101: 14.8635 | K101: 0.8 | L101: 0.85 | M101: 0.9
A102: 24250 | B102: 2883.04 | C102: 11.88882474 | D102: 3063.23 | E102: 12.63187629 | F102: 3243.42 | G102: 13.37492784 | H102: 3603.8 | I102: 14.86103093 | K102: 0.8 | L102: 0.85 | M102: 0.9
A103: 24500 | B103: 2912.288 | C103: 11.8868898 | D103: 3094.306 | E103: 12.62982041 | F103: 3276.324 | G103: 13.37275102 | H103: 3640.36 | I103: 14.85861224 | K103: 0.8 | L103: 0.85 | M103: 0.9
A104: 24750 | B104: 2941.536 | C104: 11.88499394 | D104: 3125.382 | E104: 12.62780606 | F104: 3309.228 | G104: 13.37061818 | H104: 3676.92 | I104: 14.85624242 | K104: 0.8 | L104: 0.85 | M104: 0.9
A105: 25000 | B105: 2970.784 | C105: 11.883136 | D105: 3156.458 | E105: 12.625832 | F105: 3342.132 | G105: 13.368528 | H105: 3713.48 | I105: 14.85392 | K105: 0.8 | L105: 0.85 | M105: 0.9
A106: 25250 | B106: =H106*0.8 -> 2999.16 | C106: 11.87786139 | D106: =H106*0.85 -> 3186.6075 | E106: 12.62022772 | F106: 3374.055 | G106: 13.36259406 | H106: 3748.95 | I106: 14.84732673
A107: 25500 | B107: =H107*0.8 -> 3028.424 | C107: 11.87617255 | D107: =H107*0.85 -> 3217.7005 | E107: 12.61843333 | F107: 3406.977 | G107: 13.36069412 | H107: 3785.53 | I107: 14.84521569
A108: 25750 | B108: 3056.8 | C108: 11.87106796 | D108: 3247.85 | E108: 12.61300971 | F108: 3438.9 | G108: 13.35495146 | H108: 3821 | I108: 14.83883495
A109: 26000 | B109: 3085.176 | C109: 11.86606154 | D109: 3277.9995 | E109: 12.60769038 | F109: 3470.823 | G109: 13.34931923 | H109: 3856.47 | I109: 14.83257692
A110: 26250 | B110: 3114.44 | C110: 11.86453333 | D110: 3309.0925 | E110: 12.60606667 | F110: 3503.745 | G110: 13.3476 | H110: 3893.05 | I110: 14.83066667
A111: 26500 | B111: 3142.816 | C111: 11.85968302 | D111: 3339.242 | E111: 12.60091321 | F111: 3535.668 | G111: 13.3421434 | H111: 3928.52 | I111: 14.82460377
A112: 26750 | B112: 3172.08 | C112: 11.85824299 | D112: 3370.335 | E112: 12.59938318 | F112: 3568.59 | G112: 13.34052336 | H112: 3965.1 | I112: 14.82280374
A113: 27000 | B113: 3200.464 | C113: 11.85357037 | D113: 3400.493 | E113: 12.59441852 | F113: 3600.522 | G113: 13.33526667 | H113: 4000.58 | I113: 14.81696296
A114: 27250 | B114: 3229.728 | C114: 11.85221284 | D114: 3431.586 | E114: 12.59297615 | F114: 3633.444 | G114: 13.33373945 | H114: 4037.16 | I114: 14.81526606
A115: 27500 | B115: 3258.104 | C115: 11.84765091 | D115: 3461.7355 | E115: 12.58812909 | F115: 3665.367 | G115: 13.32860727 | H115: 4072.63 | I115: 14.80956364
A116: 27750 | B116: 3286.48 | C116: 11.84317117 | D116: 3491.885 | E116: 12.58336937 | F116: 3697.29 | G116: 13.32356757 | H116: 4108.1 | I116: 14.80396396
A117: 28000 | B117: 3314.856 | C117: 11.83877143 | D117: 3522.0345 | E117: 12.57869464 | F117: 3729.213 | G117: 13.31861786 | H117: 4143.57 | I117: 14.79846429
A118: 28250 | B118: 3343.24 | C118: 11.83447788 | D118: 3552.1925 | E118: 12.57413274 | F118: 3761.145 | G118: 13.31378761 | H118: 4179.05 | I118: 14.79309735
A119: 28500 | B119: 3372.504 | C119: 11.83334737 | D119: 3583.2855 | E119: 12.57293158 | F119: 3794.067 | G119: 13.31251579 | H119: 4215.63 | I119: 14.79168421
A120: 28750 | B120: 3401.768 | C120: 11.83223652 | D120: 3614.3785 | E120: 12.5717513 | F120: 3826.989 | G120: 13.31126609 | H120: 4252.21 | I120: 14.79029565
A121: 29000 | B121: 3430.144 | C121: 11.82808276 | D121: 3644.528 | E121: 12.56733793 | F121: 3858.912 | G121: 13.3065931 | H121: 4287.68 | I121: 14.78510345
A122: 29250 | B122: 3459.408 | C122: 11.8270359 | D122: 3675.621 | E122: 12.56622564 | F122: 3891.834 | G122: 13.30541538 | H122: 4324.26 | I122: 14.78379487
A123: 29500 | B123: 3487.784 | C123: 11.82299661 | D123: 3705.7705 | E123: 12.5619339 | F123: 3923.757 | G123: 13.30087119 | H123: 4359.73 | I123: 14.77874576
A124: 29750 | B124: 3517.048 | C124: 11.82201008 | D124: 3736.8635 | E124: 12.56088571 | F124: 3956.679 | G124: 13.29976134 | H124: 4396.31 | I124: 14.77751261
A125: 30000 | B125: 3545.424 | C125: 11.81808 | D125: 3767.013 | E125: 12.55671 | F125: 3988.602 | G125: 13.29534 | H125: 4431.78 | I125: 14.7726
